{"text_format":"1","workbook":"xlsx","n_sheets":3,"sheets":["Hinweis zum Datenschutz","Erhebungsbogen","Erläuterungen"],"not_rendered":{"charts":0,"images":1,"macros":1,"external_links":1,"defined_names":155,"comments":0,"pivot_tables":0},"unopened":[],"bounds":{"document_bytes":16777216,"sheet_cells":100000,"rows_first":2000,"rows_last":500,"rows_between":2000,"halvings":0,"cell_chars":16384,"cell_head_chars":4096},"cells_cut":0,"cells_raw":0,"read":"whole","date_system":"1900"}

{"sheet":"Hinweis zum Datenschutz","index":0,"n_rows":5,"n_cols":2,"rows_kept":5,"cut":false,"hidden":false,"merged":[]}
[]
[null,"Für uns ist es selbstverständlich, dass wir Ihre Daten absolut vertraulich behandeln und nicht an "]
[null,"Dritte weitergeben. Dennoch möchten wir Sie gem. Art. 21 der Datenschutz-Grundverordnung"]
[null,"(DSGVO) auf Ihr Widerspruchsrecht und weitere Rechte hinweisen. Über den grauen Button rechts "]
[null,"kommen Sie zum Erhebungsbogen den Sie uns auch per Mail zukommen lassen können."]

{"sheet":"Erhebungsbogen","index":1,"n_rows":297,"n_cols":13,"rows_kept":297,"cut":false,"hidden":false,"merged":[[16,2,16,4],[17,2,17,4],[26,1,26,2],[18,2,18,4],[140,0,141,0],[29,0,30,0],[53,0,54,0],[62,0,63,0],[123,1,123,2],[115,1,115,3],[103,1,103,2],[55,1,55,2],[59,2,59,4],[52,1,52,4],[128,1,128,2],[128,4,129,4],[22,0,23,0],[22,1,23,1],[125,0,126,0],[125,1,126,2],[80,0,81,0],[0,1,0,3],[29,1,30,1],[65,1,65,2],[1,1,1,3],[29,3,30,3],[53,1,54,2],[57,2,57,3],[56,1,56,2],[2,1,2,3],[11,2,11,4],[12,2,12,4],[13,2,13,4],[22,2,24,3],[37,1,37,2],[14,2,14,4],[15,2,15,4],[64,7,64,8],[81,1,81,3],[85,1,85,3],[71,1,71,3],[62,1,63,2],[296,2,296,3],[289,1,289,5],[290,1,290,5],[272,4,272,5],[293,2,293,3],[295,2,295,3],[291,2,291,3],[292,2,292,3],[152,1,152,3],[269,1,269,3],[147,1,147,2],[140,1,141,2],[129,1,129,2],[144,1,144,2]]}
[null,"Erhebungsbogen Malerhandwerk NRW",null,null,"Dateiname:","MA","C:\\Referat 2\\7-Projekte\\004-Betriebsvergleiche-NRW\\6-Produkte\\80-Vorlagen\\11-Maler\\EB_Maler_2022.xlsm"]
[null,{"$f":"CONCATENATE(\"Berichtsjahr  \",C11)","v":"Berichtsjahr  2023"}]
[null,"spätester Abgabetermin: 31.10.2023"]
[]
[]
["1. ","Allgemeine Angaben"]
["1.01","Auswertungsnummer (wird von der LGH eingetragen)"]
["1.02","Wünschen Sie eine Unternehmensanalyse? ",null,"Ja = J, Nein = N"]
[null,"Bei Betriebsvergleich Berücksichtigen J/N","J"]
[]
["1.03","Berichtsjahr",2023]
["1.04","Ansprechpartner"]
["1.05","Firma"]
["1.06","Straße"]
["1.07","Plz"]
["1.08","Ort"]
["1.09","Telefon"]
["1.10","Email"]
["1.11","Berater"]
[null,"Erfassungsperiode   (Jahr=0, Quartal = 1, Monat = 2)",0]
[null,{"$f":"IF(OR(ER_ErfassungsTyp=1,ER_ErfassungsTyp=2),\"welches Quartal bzw. welcher Monat?\",\"\")","v":""},0]
[]
["2.","Angaben zum Betrieb","1 = Einzelunternehmen, \n2 = GbR,     5 = GmbH\n3 = oHG,     6 = GmbH & Co.KG,\n4 = KG,        7 = Sonstige"]
[]
["2.01","Rechtsform des Betriebes"]
[]
["2.02","Falls sich Ihr Betrieb auf eigenen Grundstücken und in eigenen Gebäuden \nbefindet, geben Sie bitte die durchschnittliche ortsübliche Miete pro Monat an",null,"€/Monat"]
[]
[]
["3.","Angaben zur Beschäftigtenstruktur"]
[]
[null,"Ermittlung der Zahl der im Jahr beschäftigten Arbeitskräfte"]
[null,"(12 Monate Beschäftigung je Arbeitskraft = 1,00 Beschäftigter, \n1 Monat Beschäftigung = 1/12 Beschäftigter =0,08)",null,null,"Anzahl der Beschäftigten"]
[null,null,null,null,null,null,null,"Normale Stunden pro Woche",39.83]
["3.01","Tätiger Inhaber (auch GmbH Gesellschafter-Geschäftsführer)",null,null,null,null,null,"Vorgabew. Std. pro Woche Inh.",50]
["3.02",null,"wöchentliche Arbeitszeit",null,"Stunden",null,null,"Bewertung Inhaber",{"$f":"IF($D$36>0,$D$36/$I$34,IF($E$35>0,$I$35/$I$34,0))","v":0}]
["3.03",null,"Anteil direkt verrechnebar (produktiv)",null,"%",null,null,"Bewerteter Inhaber",{"$f":"$E$35*$I$36","v":0},null,null,{"$f":"IF(ER_Inhaber_handwerklich_Proz=\"\",\"0\",100-ER_Inhaber_handwerklich_Proz)","v":"0"},"kaufmännisch/organisatorisch tätig"]
["3.04","Techniker, Meister, Betriebsleiter u.a. im Angestelltenverhältnis \n(mit einem direkt verreichenbaren \"produktiven\" Anteil)",null,null,null,null,null,null,{"$f":"$E$38","v":0}]
["3.05",null,"Anteil direkt verrechnebar (produktiv)",null,"%",null,null,null,null,null,null,{"$f":"IF(ER_Meister_handwerklich_Proz=\"\",\"0\",100-ER_Meister_handwerklich_Proz)","v":"0"},"kaufmännisch/organisatorisch tätig"]
[null,"Im Fertigungsbereich direkt verrechenbar \"produktiv\" tätig"]
["3.06","Vorarbeiter, Gesellen, Facharbeiter, Helfer",null,null,null,null,null,"bewertung Lehrlinge",{"$f":"$E$41","v":0}]
["3.07","Handwerkslehrlinge",null,null,null,null,null,30,{"$f":"$E$42*$H$42/100","v":0}]
[null,"Im kaufmännischen Bereich nicht direkt verrechenbar \"unproduktiv\" tätig"]
["3.08","Kaufmännische und technische Angestellte",null,null,null,null,null,null,{"$f":"$E$44","v":0}]
["3.09","Sonstige (Lehrlinge, Praktikanten, Lagerverwalter usw.)",null,null,null,null,null,null,{"$f":"$E$45","v":0}]
[]
[]
[]
[null,"Angaben zur Kapazität","Krankheits-     tage","genommene Urlaubstage","bezahlte Überstunden"]
[null,"Tätige(r) Inhaber",0,0,0]
["3.10","Betriebsleiter, Meister u.a. im Angestelltenverhältnis"]
["3.11","Arbeitsstellenleiter, Vorarbeiter, Gesellen, Facharbeiter"]
[null,"Die folgenden Angaben beziehen sich auf die unter 3.06 angegebenen \"produktiv\" tätigen Mitarbeiter."]
["3.12","Bei Arbeitszeitflexibilisierung geben Sie bitte den jeweiligen Stand des gesamten Arbeitszeitkontos der \"produktiv\" tätigen an.",null,"Std. am 01.01."]
[null,null,null,"Std. am 31.12."]
["3.13","Durchschnittliche unproduktive Zeiten je \"produktiv\" Beschäftigten",null,"Std./Tag"]
["3.14","Mittellohn      = Summe aller gezahlter Stundenlöhne\n                          Anzahl der gewerbl. Mitarbeiter ohne Auszubildende",null,"€/Std."]
["3.15","Kurzarbeitstage","Fehltage pro produktiv \nBeschäftigten"]
[]
[null,"Ergänzende Kommentare bzw. Angaben?                                                                Im rechten Feld haben Sie die Gelegenheit, einige kurze ergänzende Angaben zu machen. So z.B. wenn Sie im Betrieb Aufzeichnungen zu gesamten produktiven Stunden haben und diese angeben möchten."]
[]
[]
["4.","Angaben zur Gewinn- und Verlustrechnung"]
[]
[]
[]
[null,"Umsatz"]
["4.01","Umsatzerlöse"]
["4.02","Bestandsveränderungen unfertige Bauaufträge/Arbeiten \n(Bitte mit Vorzeichen +/- angeben)"]
[null,"= Handwerksleistung",null,null,{"$f":"ER_Handwerkserloese+ER_Bestandsveraenderung_halbfertige","v":0}]
[null,"= Betriebsleistung",null,null,{"$f":"E70","v":0}]
["4.03","Sonstige betriebliche Erträge\n(Erlöse aus Anlagenverkäufen, Steuererstattungen usw.)"]
["4.04","= Summe aller Erträge",null,null,{"$f":"E71+E72","v":0}]
[null,"Aufwendungen"]
[null,"Wareneinsatz"]
["4.05","Aufwendungen für Roh-, Hilfs- und Betriebsstoffe und für bezogene Waren"]
["4.06","Aufwendungen für bezogene Fremdleistungen"]
["4.07","Aufwand für Leiharbeiter"]
["4.08","Aufwand für Leiharbeiter pro Stunde","€/Stunde",null,null,null,{"$f":"IF(ER_Aufwand_Leiharbeiter_pro_Std=0,ER_Aufwand_Leiharbeiter/23,ER_Aufwand_Leiharbeiter/ER_Aufwand_Leiharbeiter_pro_Std)","v":0},"Std. Leiharbeit"]
[null,"Personalaufwand (abzüglich Erstattungen)",null,null,null,null,{"$f":"G79/1500","v":0},"Anzahl Leiharbeiter"]
["4.09","Lohnaufwand für Lohnempfänger (produktiv tätige siehe 3.06)"]
[null,"(Bruttolöhne, Arbeitgeberanteil zur gesetzlichen Sozialversicherung, tarifliches Urlaubsgeld, \nsonstige tarifliche und freiwillige Zuwendungen, Lohnfortzahlung im Krankheitsfall)"]
["4.10","Gehalt für Betriebsleiter, Meister u.a. im Angestelltenverhältnis (siehe 3.04) inkl. Sozialkosten"]
["4.11","Ausbildungsvergütung für Handwerkslehrlinge (3.07) inkl. Sozialkosten"]
["4.12","Berufsgenossenschaftsbeiträge"]
["4.13","Gehaltsaufwand für Angestellte und kaufmännische Auszubildende (siehe 3.08 - 3.09)\n(Bruttogehälter, sonst wie oben)"]
["4.14","Gehalt für GmbH-Geschäftsführer inkl. Sozialkosten"]
[null,"Abschreibungen"]
["4.15","Afa auf immaterielles Anlagevermögen"]
["4.16","Afa auf Gebäude"]
["4.17","Afa auf sonstiges Anlagevermögen"]
["4.18","Geringwertige Wirtschaftsgüter (Poolabschreibung)"]
[null,"Sonstige betriebliche Aufwendungen"]
["4.19","Mieten für Grundstücke und Gebäude (ohne Fahrzeuge und Maschinen)"]
["4.20","Energiekosten (Strom, Gas, Wasser, Heizung)"]
["4.21","Reinigung und Instandhaltung"]
["4.22","Sonstige Aufwendungen für eigene Grundstücke und Gebäude"]
["4.23","Betriebliche Versicherungen (ohne Kfz-Versicherung und Berufsgenossenschaft)"]
["4.24","Gebühren und Beiträge (z.B. Kammerbeiträge)"]
["4.25","Fahrzeugkosten (ohne Abschreibungen und Leasinggebühren) also Kfz-Versicherung, -Steuer, -Reparatur, -Treibstoff"]
["4.26","Werbung, Repräsentation, Bewirtung"]
["4.27","Reisekosten"]
["4.28","Kosten der Warenabgabe (Ausgangsfrachten, Transportversicherung u.a.)"]
["4.29","Aufwand für Gewährleistung "]
["4.30","Instandhaltung von Maschinen Werkzeugen und BGA"]
["4.31","Leasing und Miete für Maschinen "]
["4.32","Porto, Telefon, Internet"]
["4.33","Büromaterial, Zeitschriften"]
["4.34","Rechts- und Beratungskosten"]
["4.35","Kosten der externen Buchführung, Jahresabschluß- und Prüfkosten"]
["4.36","Miete für Einrichtungen"]
["4.37","Kosten der Entsorgung"]
["4.38","Kosten des Geldverkehrs, Bankgebühren"]
["4.39","Betriebsbedarf"]
["4.40","Werkzeuge und Kleingeräte (Sofortabschreibung)"]
["4.41","Sonstiger betrieblicher Aufwand im Rahmen der gewöhnlichen Geschäftstätigkeit"]
[null,"Finanzergebnis"]
["4.42","Bezahlte kurzfristige Zinsen (Kontokorrent)"]
["4.43","Bezahlte langfristige Zinsen (Darlehen, Gewährleistungsbürgschaften)"]
["4.44","Bezahlte Zinsen für Gesellschafterdarlehn (GmbH)"]
[null,"Steuern"]
["4.45"," Steuern       a) Körperschaftssteuer, Solidaritätszuschlag (GmbH)",null,null,null,null,"Errechnetes "]
["4.46","                   b) Betriebssteuern (Gewerbesteuern)",null,null,null,null,"Ergebnis:"]
["4.47"," = Jahresüberschuss/ -fehlbetrag    \n    Bitte angeben, da die Zahl zur Kontrollrechnung benötigt wird",null,null,null,null,{"$f":"ER_Summe_Erloese-SUM(E76:E120)-ER_Steuern_GmbH-ER_Steuern","v":0}]
[]
["5.","Angaben zur Fertigungsstruktur"]
[]
[]
[null,"Fertigungsstruktur  (gewissenhafte Schätzung genügt)"]
[null,"Von der Gesamtleistung = 100 % entfielen auf:"]
["5.01","Malerarbeiten in Neubauten",null,null,"%"]
["5.02","Malerarbeiten in Altbauten",null,null,"%"]
["5.03","Fassadenbeschichtungen",null,null,"%"]
["5.04","Wärmedämmung",null,null,"%"]
["5.05","Bodenbelagsarbeiten",null,null,"%"]
["5.06","Glaserarbeiten",null,null,"%"]
["5.07","Sonstiges (z.B. Gerüstarbeiten, Korrosionsarbeiten, u.a.)",null,null,"%"]
[null,"Summe",null,{"$f":"SUM(D131:D137)","v":0},"%"]
[]
[]
["6.","Sonstige Angaben"]
[]
[]
[null,"Kalkulatorischer Unternehmerlohn",null,"Euro"]
[null,"(Höhe des angemessenen kalkulatorische Unternehmerlohns für die Leistung des Betriebsinhabers)",null,0]
["6.01","Durchschnittlicher Zuschlag auf Materialeinsatz",null,null,"%"]
["6.02","Durchschnittlicher Zuschlag auf Fremdleistungen",null,null,"%"]
["6.03","Durchschnittlicher Stundenverrechnungssatz (Preis pro Stunde)",null,null,"€/Std."]
[]
[]
["7.","Angaben aus der Bilanz"]
[]
[null,"Die nachstehende Bilanzgliederung ist vereinfacht und auf das Wesentliche beschränkt. Bei der Aufgliederung der Bilanz ordnen Sie bitte weitergehende Untergliederungen diesen aufgeführten Bilanzpositionen sachlich zu."]
[null,"Aktiva"]
[null,"Anlagevermögen"]
["7.01","Immaterielles Anlagevermögen",null,null,null,null,{"$f":"IF(E156<0,1,0)","v":0}]
["7.02","Immobilien: a) Grundstücke und Gebäude",null,null,null,null,0]
["7.03","                  b) Mietereinbauten, Hofbefestigungen usw.",null,null,null,null,0]
["7.04","Technische Anlagen",null,null,null,null,0]
["7.05","Fuhrpark",null,null,null,null,0]
["7.06","Betriebs- und Geschäftsausstattung",null,null,null,null,0]
["7.07","Sonstiges Anlagevermögen",null,null,null,null,0]
[null,"Umlaufvermögen"]
["7.08","Material- und Handelswarenbestand",null,null,null,null,{"$f":"IF(E164<0,1,0)","v":0}]
["7.09","Teilfertige Arbeiten",null,null,null,null,0]
["7.10","Geleistete Anzahlungen an Lieferanten",null,null,null,null,0]
["7.11","Forderungen aus Lieferung und Leistung an Kunden",null,null,null,null,0]
["7.12","Sonstige Forderungen",null,null,null,null,0]
["7.13","Kasse, Bank",null,null,null,null,0]
["7.14","Sonstiges Umlaufvermögen",null,null,null,null,0]
["7.15","Posten der aktiven Rechnungsabgrenzung",null,null,null,null,{"$f":"IF(E171<0,1,0)","v":0}]
["7.16","Nicht durch Eigenkapital gedeckter Fehlbetrag (negetives EK)",null,null,null,null,{"$f":"IF(E172<0,1,0)","v":0}]
[null,"Summe Aktiva",null,null,{"$f":"SUM(E156:E162)+SUM(E164:E170)+SUM(E171:E172)","v":0}]
[null,"Passiva"]
["7.17",{"$f":"CONCATENATE(\"Eigenkapital am 1.1.\",C11)","v":"Eigenkapital am 1.1.2023"}]
["7.18",{"$f":"CONCATENATE(\"+ Einlagen \",C11)","v":"+ Einlagen 2023"}]
["7.19",{"$f":"CONCATENATE(\" - Entnahmen \",C11)","v":" - Entnahmen 2023"}]
["7.20",{"$f":"CONCATENATE(\"+ Gewinn \",C11,\"/ - Verlust \",C11)","v":"+ Gewinn 2023/ - Verlust 2023"}]
["7.21",{"$f":"CONCATENATE(\"= Eigenkapital am 31. 12. \",C11)","v":"= Eigenkapital am 31. 12. 2023"},null,{"$f":"IF(ER_Summe_Aktiva=0,0,IF(ER_Gewinn_Bilanz=0,ER_EK_1_1+ER_Einlagen-ER_Entnahmen+ER_Jahresergebnis,ER_EK_1_1+ER_Einlagen-ER_Entnahmen+ER_Gewinn_Bilanz))","v":0}]
["7.22","Gesellschafterdarlehen (GmbH)",null,null,null,null,{"$f":"IF(E180<0,1,0)","v":0}]
["7.23","Sonderposten mit Rücklagenanteil",null,null,null,null,{"$f":"IF(E181<0,1,0)","v":0}]
["7.24","Rückstellungen a) langfristige (Pensionsrückstellung u.a.)",null,null,null,null,{"$f":"IF(E182<0,1,0)","v":0}]
["7.25","                       b) kurzfristige",null,null,null,null,{"$f":"IF(E183<0,1,0)","v":0}]
[null,"Verbindlichkeiten"]
["7.26","Langfristige Bankverbindlichkeiten (Darlehen)",null,null,null,null,{"$f":"IF(E185<0,1,0)","v":0}]
["7.27","Kurzfristige Bankverbindlichkeiten (Kontokorrent)",null,null,null,null,0]
["7.28","Verbindlichkeiten aus Lieferung und Leistung",null,null,null,null,0]
["7.29","Erhaltene Anzahlungen von Kunden",null,null,null,null,0]
["7.30","Sonstige Verbindlichkeiten",null,null,null,null,0]
["7.31","Posten der passiven Rechnungsabgrenzung",null,null,null,null,0]
[null,"Summe Passiva",null,null,{"$f":"SUM(E179:E190)","v":0}]
[]
[]
[]
[null,"Fertig mit der Eingabe?  Kontrollieren Sie hier Ihre Eingaben:"]
[]
[]
[]
[]
[]
[]
[]
[]
[]
[]
[]
[]
[]
[]
[]
[]
[]
[]
[]
[]
[]
[]
[]
[]
[]
[]
[]
[]
[]
[]
[]
[]
[]
[]
[]
[]
[]
[]
[]
[]
[]
[]
[]
[]
[]
[]
[]
[]
[]
[]
[]
[]
[]
[]
[]
[]
[]
[]
[]
[]
[]
[]
[]
[]
[]
[]
[]
[]
[]
[null,null,null,null,null,null,"Beschäftigte ",null,null,"Beschäftigte "]
[null,null,null,null,null,null,"von","bis","Größenklasse","von","bis","Größenklasse"]
[null,null,null,null,null,null,0,4.9400000000000004,1,0,14.94,1]
[null,null,null,null,null,null,4.9400000000000004,14.94,2,15,999999,2]
[null,null,null,null,null,null,14.94,999999,3,19.95,999999,3]
[null,"Kontrolldaten"]
[]
[null,"Größenklasse",{"$f":"IF(AND(D273>G267,D273<=H267),I267,IF(AND(D273>G268,D273<H268),I268,IF(AND(D273>G269,D273<=H269),I269,\"0\")))","v":"0"},{"$f":"IF(AND(D273>J267,D273<=K267),L267,IF(AND(D273>J268,D273<K268),L268))","v":false}]
[null,"Zahl der Beschäftigten unbewertet / bewertet",{"$f":"SUM($E$35:$E$45)","v":0},{"$f":"SUM(I37:I45)+G80","v":0},{"$f":"IF(AND(C273=0,D279<>0),\"Beschäftigte fehlen!\",\" \")","v":" "}]
[null,"Summe Krankheitstage je produktiv Beschäftigen",{"$f":"IF(SUM(ER_Meister+ER_Gesellen+ER_Lehrlinge)=0,0,SUM(C51:C52)/(ER_Meister+ER_Gesellen+ER_Lehrlinge))","v":0},{"$f":"IF(AND($E$38+$E$41+$E$42>0,$C$274=0),\"Keine Krankheitstage?\",\" \")","v":" "},null,null,{"$f":"IF(AND($E$38+$E$41+$E$42>0,$C$274>0),$C$274/($E$38+$E$41+$E$42),0)","v":0}]
[null,"Summe Urlaubstage  je produktiv Beschäftigten",{"$f":"IF(SUM(ER_Meister+ER_Gesellen+ER_Lehrlinge)=0,0,SUM(D51:D52)/(ER_Meister+ER_Gesellen+ER_Lehrlinge))","v":0},{"$f":"IF(AND($E$38+$E$41+$E$42>0,$C$275=0),\"Keine Urlaubstage?\",\" \")","v":" "},null,null,{"$f":"IF(AND($E$38+$E$41+$E$42>0,$C$275>0),$C$275/($E$38+$E$41+$E$42),0)","v":0}]
[null,"Summe Überstunden",{"$f":"SUM(E51:E52)","v":0}]
[]
[null,"Kontrolldaten zur  GuV ","eingegebener Wert","errechneter Wert","Differenz"]
[null,"Jahresüberschuss",{"$f":"ER_Jahresergebnis","v":0},{"$f":"ER_Summe_Erloese-SUM(E76:E120)-ER_Steuern_GmbH-ER_Steuern","v":0},{"$f":"IF(C279<>D279,\"Diff. in der G + V : \",\" \")","v":" "},{"$f":"IF(D279<>C279,G279,\" \")","v":" "},{"$f":"C279-D279","v":0}]
[null,"Kontrolldaten zur  Bilanz","Summe Aktiva","Summe Passiva","Differenz"]
[null,"Bilanzsummen",{"$f":"ER_Summe_Aktiva","v":0},{"$f":"E191","v":0},{"$f":"IF(C281<>D281,\"Diff. in der Bilanz : \",\" \")","v":" "},{"$f":"IF(D281<>C281,G281,\" \")","v":" "},{"$f":"C281-D281","v":0}]
[null,{"$f":"IF(SUM(G156:G172)>0,\"Achtung, negativer Wert Aktivseite Bilanz!!\",\"\")","v":""},{"$f":"IF(SUM(G180:G190)>0,\"Achtung, negativer Wert Passivseite Bilanz!!\",\"\")","v":""}]
[null,"Summe Auftragsstruktur",{"$f":"$D$138","v":0},{"$f":"IF(AND(C283<>100,C283<>0),\"Differenz in der Auftragsstruktur\",\" \")","v":" "},null,null,{"$f":"IF(C283<>0,100-C283,0)","v":0}]
[]
[]
[]
[]
[]
[]
[null,"Hier können Sie die erfassten Daten automatisch  in einer Datei speichern. Wichtig dabei ist die Angabe des Verzeichnis und - wenn keine Betriebsnummer angegeben ist - die laufende Nummer !"]
[]
[null,"Branchenkürzel","MA"]
[null,"Berichtsjahr",{"$f":"C11","v":2023}]
[null,"Dateikennzeichnung oder laufende Nummer:",{"$f":"IF(ER_Betriebsnr>0,ER_Betriebsnr,\"\")","v":""}]
[null,"(Sie können Nummern oder Buchstaben vergeben. )"]
[null,"Verzeichnis","C:\\Eigene Dateien"]
[null,"Unter diesem Namen wird die Datei gespeichert:",{"$f":"CONCATENATE(C292,C293,C294)","v":"MA2023"}]

{"sheet":"Erläuterungen","index":2,"n_rows":129,"n_cols":8,"rows_kept":129,"cut":false,"hidden":false,"merged":[[1,0,1,7],[6,1,6,7],[9,1,9,7],[8,1,8,7],[41,1,41,7],[11,1,11,7],[13,1,13,7],[15,1,15,7],[35,1,35,7],[37,1,37,7],[42,1,42,7],[102,1,102,7],[46,1,46,7],[49,1,49,7],[54,1,54,7],[59,1,59,7],[64,1,64,7],[65,1,65,7],[86,1,86,7],[90,1,90,7],[96,1,96,7],[76,1,76,7],[89,1,89,7],[91,1,91,7],[74,1,74,7],[75,1,75,7],[77,1,77,7],[92,1,92,7],[94,1,94,7],[93,1,93,7],[85,1,85,7],[95,1,95,7],[97,1,97,7],[98,1,98,7],[99,1,99,7],[101,1,101,7],[100,1,100,7],[120,1,120,7],[117,1,117,7],[118,1,118,7],[106,1,106,7],[113,1,113,7],[103,1,103,7],[109,1,109,7],[115,1,115,7],[116,1,116,7],[119,1,119,7],[128,1,128,7],[129,1,129,7],[121,1,121,7],[122,1,122,7],[123,1,123,7],[124,1,124,7],[125,1,125,7],[127,1,127,7]]}
[]
["Erläuterungen zum Ausfüllen des Erhebungsbogen"]
[]
["Der elektronische Erhebungsbogen soll Ihnen (und auch uns) die Erfassung Ihrer Daten erleichtern."]
["In dieser Tabelle wollen wir Ihnen einige kurze Erläuterungen zum Ausfüllen geben:"]
[]
["1.","Der Erhebungsbogen ist so eingerichtet, dass Sie nur in den Eingabefeldern (weiße, umrahmte Felder) Angaben machen können."]
[]
["2.","Bitte benutzen Sie die Tabulatortaste, um in das nächste Eingabefeld zu gelangen."]
[null,"Achtung: Schließt man die Eingabe mit der \"Entertaste\" ab, springt der Kursor nur in die nächste Zelle unter der eingegebenen Zelle."]
[]
["3.","Über die Schaltflächen (Zeile 3 des Erhebungsbogen) kommen Sie mit dem Kursor zum \nAnfang des gewählten Eingabebereiches."]
[]
["4.","Bitte überprüfen Sie nach Ihrer Eingabe die Daten auf Vollständigkeit. Dazu haben wir am Ende der Datei einen Kontrollbereich installiert, in dem die wichtigsten Zahlen dargestellt sind und Differenzen ausgewiesen werden. Auf Differenzen werden Sie durch rote Schrift hingewiesen. Auch notwendige fehlende Angaben werden angemerkt."]
[]
["5.","Bitte speichern Sie Ihre Daten in dieser Exceldatei und senden diese an die Adresse Betriebsvergleiche@lgh.de"]
[null,"Sollten Sie uns die Daten lieber auf dem Postwege zukommen lassen wollen, senden Sie den "]
[null,"Ausdruck bitte an:"]
[]
[null,null,"Landes-Gewerbeförderungsstelle des "]
[null,null,"nordrhein-westfälischen Handwerks e.V."]
[null,null,"Postfach 10 34 12",null,null,"Auf'm Tetelberg 7"]
[null,null,"40025 Düsseldorf",null,null,"40221 Düsseldorf"]
[]
[]
[]
[]
[]
[]
[]
[]
[]
[]
["1.","Allgemeine Angaben"]
[]
[null,"Bitte geben Sie eine Auswertungsnummer nur dann an, wenn Sie bereits an einem Betriebsvergleich teilgenommen haben und Ihre Auswertungsnummer kennen. Im anderen Fall lassen Sie das Feld \"Auswertungsnummer\" bitte frei."]
[]
[null,"Falls Sie eine Unternehmensanalyse wünschen, benötigen wir Ihre Adresse und auch einen Ansprechpartner für eventuelle Rückfragen."]
[]
["2.","Angaben zum Betrieb"]
[]
[null,"Bei der Rechtsform geben Sie bitte die entsprechende Zahl ein"]
[null,"Geben Sie bitte bei der Miete nur einen Wert an, wenn Ihr Betrieb oder ein Teil Ihres Betriebes auf eigenem Grundstück und in eigenen Räumen tätig ist. Anhaltswerte für eine angemessene Miete kann Ihnen möglicherweise ein Mietspiegel Ihrer Gemeinde geben. Andernfalls könnte Ihnen bei der Beantwortung dieser Frage ein ortsüblicher Mietpreis pro Quadratmeter und Ihre Quadratmeterzahl als Grundlage dienen."]
[]
["3.","Angaben zur Beschäftigtenstruktur"]
[]
[null,"Unter der Beschäftigtenstruktur möchten wir von Ihnen die Anzahl Ihrer Arbeitnehmer erfahren, getrennt nach den Tätigkeitsbereichen. Je genauer Sie hier die Angaben machen, desto besser sind die Aussagen bei Ihrer Unternehmensanalyse. Beim Ausfüllen beachten Sie bitte folgende Bewertungen:"]
[]
[null,"Vollzeitkräfte:"]
[null,"Ein Beschäftigter, der beschäftigt war vom Januar bis Dezember mit einer normalen Wochenarbeitszeit, ist zu bewerten mit 1. Ein Beschäftigter, der weniger als 12 Monate mit einer normalen Wochenarbeitszeit beschäftigt war, ist entsprechend geringer zu bewerten."]
[null,"1 Beschäftigter mit 12 Monaten = 1"]
[null,"1 Beschäftigter mit 5 Monaten = 5/12  = 0,42"]
[]
[null,"Teilzeitkräfte:"]
[null,"Ein Beschäftigter, der beschäftigt war von Januar bis Dezember oder kürzer mit einer geringeren Wochenarbeitszeit, ist entsprechen zu bewerten"]
[null,"1 Beschäftigter mit 12 Monaten und 50% der normalen Wochenarbeitzeit = 0,5"]
[null,"1 Beschäftigter mit 6 Monaten und 50% der normalen Wochenarbeitzeit = 0,25"]
[]
[null,"Aushilfen:"]
[null,"Aushilfen sind entsprechend ihrer bezahlten Stunden im Vergleich zu den normalen bezahlten Stunden im Jahr zu bewerten."]
[null,"Aushilfsstunden im Jahr                        ",null,null,null,"z. B.",500,"= 0,24"]
[null,"Normal zu bezahlende Stunden im Jahr",null,null,null,null,2080]
[]
[null,"Inhaber"]
["3.01\nbis\n3.03","In vielen Fällen ist die normale Wochenarbeitszeit der Inhaber dauernd höher als die seiner Mitarbeiter. Geben Sie daher bitte die durchschnittliche Wochenarbeitszeit des Inhabers an. Für die Auswertung ist es wichtig, wie groß der Anteil der handwerklichen Tätigkeiten (=direkt verrechenbare Inhaberstunden) an seinen Gesamtstunden ist."]
[]
[null,"Meister, Betriebsleiter u.a. im Angestelltenverhältnis"]
["3.04","Mitarbeiter, die im Angestelltenverhältnis stehen, deren Arbeit aber zum Teil \"produktiv\" ist, "]
["bis","sollten hier eingetragen werden. Der produktive bzw. unproduktive Anteil ist dabei"]
["3.05","in Prozent festzuhalten. Mit \"produktive\" Tätigkeit sind hier Tätigkeiten gemeint, die direkt"]
[null,"verrechenbar sind, also einem Auftrag zugerechnet werden können. Der entsprechende Anteil "]
[null,"des Gehaltes sollte im Bereich der GuV dem Lohnaufwand zugerechnet werden."]
[]
[null,"Angaben zur Kapazität"]
["3.10\nbis\n3.11","Geben Sie bitte die Krankheitstage, Urlaubstage und die bezahlten Überstunden an. Bei den Überstunden sind nur die Stunden zu berücksichtigen, die tatsächlich angefallen und bezahlt wurden und nicht durch ein Arbeitszeitkonto (flexible Arbeitszeiten) ausgeglichen wurden. Bei den Krankheitstagen geht es nur um die Tage mit Lohnfortzahlung durch den Arbeitgeber. Fehlt ein Mitarbeiter länger, ist dies bei der Anzahl der Mitarbeiter entsprechend zu kürzen."]
["3.12","Die Bestände der Zeitkonten zum 01.01. und 31.12. entnehmen Sie bitte Ihren betrieblichen Aufzeichnungen (Arbeitszeitkonten)."]
["3.13","Unproduktiv sind Zeiten, für die der Arbeitnehmer eine Vergütung erhält und die dem Kunden nicht direkt in Rechnung gestellt werden. Beispiele hierfür sind:\n- bezahlte Fahrzeit, die nicht in den Auftrag einkalkuliert ist\n- Wartezeit auf der Baustelle, die nicht einkalkuliert ist\n- Zeiten für nicht vergütete Gewährleistungsarbeiten\nSchätzen Sie diesen Anteil pauschal in Stunden pro Tag eines Arbeitnehmers.\n"]
["3.14","Als Mittellohn tragen Sie bitte den von Ihnen durchschnittlich im Jahr gezahlten Stundenlohn ohne VL ein."]
[null,"Beispiel:","Geselle A",15.5,"€"]
[null,null,"Geselle B",14.5,"€"]
[null,null,"Helfer",13,"€"]
[]
[null,null,"Summe",{"$f":"SUM(D79:D82)","v":43},"€"]
[]
[null,null,"Mittellohn =",{"$f":"CONCATENATE(D83,\" / 3     =\")","v":"43 / 3     ="},14.33,"€"]
["3.15","In der Spalte Kurzarbeitertage sind Tage einzutragen, für die entweder normales Kurzarbeitergeld oder SaisonKUG (= Saison-Kurzarbeitergeld) gezahlt wurde. Saison-KUG betrifft die sogenannte „Schlechtwetterzeit“ von Anfang Dezember bis Ende März. Es dürfen keine Tage eingetragen werden, die durch flexible Arbeitszeitregelungen abgefangen wurden."]
[]
[]
["4.","Angaben zur Gewinn- und Verlustrechnung"]
[null,"Die Ihnen vorliegende Gewinn- und Verlustrechnung (kurz: GuV) wird nach steuerlichen Gesichtspunkten erstellt. Ziel der GuV ist es, den „Gewinn vor Steuern“ zu ermitteln. Dieser wird für die Einkommensteuererklärung benötigt (= Einkünfte aus Gewerbebetrieb)."]
[null,"Für die steuerliche Gewinnermittlung spielt es eine nachrangige Rolle, ob die diesbezüglichen Erträge aus der handwerklichen Haupttätigkeit oder einer betrieblichen Nebentätigkeit (z.B. Energiegewinnung, Untervermietung) oder einer steuerlichen Vorschrift (z.B. private Nutzung von Betriebsvermögen, Verkaufserlöse abweichend von ihrem Buchwert, Wertberichtigungen) resultieren."]
[null,"Für den Betriebsvergleich hingegen ist die Abgrenzung von handwerklicher Haupttätigkeit und betrieblicher Nebentätigkeit bzw. steuerlichen Vorschriften wichtig. Denn die Unternehmensanalyse konzentriert sich auf die Ertragskraft der handwerklichen Haupttätigkeit."]
[null,"Dazu sollten bei den Umsatzerlösen die handwerksfremden Bestandteile nicht mit angegeben werden. Auch die „Sonstigen betrieblichen Erträge“ werden in der Auswertung später nicht berücksichtigt. Erfahrungsgemäß gehen mit solchen Erträgen auch Aufwendungen (z.B. Abschreibungen, Versicherungskosten und Finanzierungszinsen) einher, die ebenfalls so weit wie möglich herausgerechnet werden müssen. "]
[null,"Die abgefragten Positionen der Gewinn- und Verlustrechnung entsprechen im betrieblichen Bereich weitestgehend den Kostenarten, die in den meisten Kontennachweisen aufgeführt sind. Bei anderen Kostenarten ordnen Sie diese bitte sachlich zu. Im Folgenden sind zu einigen Positionen Tipps bzw. Besonderheiten aufgeführt:"]
["4.01","Umsatzerlöse sind in erster Linie Erlöse für erbrachte Bauleistungen (inkl. eigenaktivierte Leistungen). Zwar zählen seit dem 01.01.2016 handwerksfremde Sachverhalte wie z.B. Energiegewinnung, Untervermietung, private Nutzung von Fahrzeugen zu den Umsatzerlösen, diese sollten aber möglichst nicht in diese Position einfließen. Dies ist wichtig, um beurteilen zu können, ob der Handwerksbetrieb rentabel arbeitet."]
["4.02","Bestandsveränderungen beziehen sich auf die zum Bilanzstichtag nicht abgeschlossenen Bauaufträge und sonstige Aufträge."]
["4.03","Sollten Sie Material ein- und wieder verkaufen, ohne dass es in den handwerklichen Wertschöpfungsprozess eingebunden, also weder be- noch verarbeitet wird, geben Sie hier die entsprechenden Umsätze an."]
["4.04","Zu den sonstigen betrieblichen Erträgen zählen insbesondere Erträge aus dem Verkauf von Anlagevermögen, der Auflösung von Rückstellungen, vorgenommenen Wertberichtigungen, erhaltene Entschädigungen, Beilegung von Rechtsstreitigkeiten etc. Nicht dazu zählen: Erstattungen fürs Personal (Urlaubsentgelt, Ausbildungsvergütung und überbetriebliche Ausbildung, Lohnfortzahlung im Krankheitsfall (U1-Umlage). Diese müssen im Personalaufwand berücksichtigt sein."]
["4.05","Tragen Sie hier nur den Wert aus der GuV ein. Zuschlagsätze spielen dabei keine Rolle."]
["4.08","Tragen Sie hier nur den Wert aus der GuV ein. Zuschlagsätze spielen dabei keine Rolle."]
["4.09\nbis\n4.14","Die im Erhebungsbogen aufgeführten Positionen zum Personalaufwand werden Sie so nicht in Ihrer Gewinn- und Verlustrechnung finden. Diese Angaben sollten Sie aus Ihrer Lohnbuchhaltung entnehmen. Die Unterteilung des gesamten Personalaufwandes in die einzelnen gehalts- bzw. lohnbezogenen Bestandteile ist für die Berechnung einiger Kennzahlen erforderlich."]
["4.15\nbis\n4.17","Bitte tragen Sie hier nur die normalen steuerlichen Abschreibungen ein. Für „Abschreibungen auf Forderungen“ gilt beim Betriebsvergleich: Einzelwertberichtigungen und Pauschalwertberichtigungen gehören zu den sonstigen betrieblichen Aufwendungen. "]
["4.18","Hierunter fallen geringwertige Wirtschaftsgüter bis 150 Euro (bei Poolabschreibung) bzw. bis 410 Euro (wenn keine Poolabschreibung erfolgt), die sofort zu 100 % als Betriebsausgaben abgeschrieben werden. "]
["4.19\nbis\n4.41","Die Aufteilung der sonstigen Aufwendungen orientiert sich am Kontenrahmen SKR03. Um eine bessere Übersichtlichkeit zu erreichen, wurden einige Positionen zusammengefasst. Wir bitten, keine weiteren Positionen zusammenzufassen, sondern Ihre Aufwendungen den vorgegebenen Positionen zuzuordnen, da die Aussagekraft der Auswertungen ansonsten nicht mehr in dem gewünschten Maße gegeben ist. Aufwandspositionen, die mit der Bildung von Rückstellungen und Rücklagen verbunden sind, werden beim Betriebsvergleich unter 4.41 sonstiger betrieblicher Aufwand angegeben."]
[]
["5.","Angaben zur Auftraggeber- und Tätigkeitsstruktur"]
[null,"Falls in Ihrer Gewinn- und Verlustrechnung keine genauen Angaben zur Auftraggeber- und zur Tätigkeitsstruktur zu finden sind, geben Sie bitte möglichst gewissenhafte Schätzungen zu den einzelnen Strukturen an."]
[]
["6.","Sonstige Angaben"]
[null,"Bei den Zuschlägen auf Material und Fremdleistungen geben Sie bitte die Werte an, die Sie durchschnittlich verrechnen. Sollten Sie hierzu keine Aufzeichnungen haben, nehmen Sie bitte eine gewissenhafte Schätzung vor."]
[]
[]
["7.","Angaben zur Bilanz"]
[null,"Ebenso wie im Bereich der Gewinn- und Verlustrechnung ist der Kontennachweis der Bilanz aus dem Jahresabschluss hilfreich, um korrekte Angaben machen zu können. Da die vorliegende Bilanzgliederung vereinfacht und auf das Wesentliche beschränkt ist, ordnen Sie bitte weitergehende Untergliederungen den aufgeführten Bilanzpositionen sachlich zu."]
[null,"Aktiva:"]
["7.01\nbis\n7.07","Wenn Sie einen Wert im Bereich des Anlagevermögens eintragen, achten Sie darauf, dass im Bereich der GuV die entsprechenden Abschreibungen gebucht wurden."]
["7.02\nbis\n7.03","Bitte achten Sie auf die Trennung von Grundstücken und Gebäuden zu den Mietereinbauten. Falsche Angaben können die Berechnung der kalkulatorischen Miete beeinflussen."]
["7.16","Negatives Eigenkapital wird in die Position „nicht durch Eigenkapital gedeckter Fehlbetrag“ eingetragen. Da negatives Eigenkapital auf der Aktivseite der Bilanz ausgewiesen wird, ist darauf zu achten, dass in solchen Fällen auf der Passivseite kein Eigenkapital zum 31.12. mehr einzutragen ist."]
[null,"Summe Aktiva"]
[null,"Für Kontrollzwecke bitte den Wert aus der Bilanz angeben."]
[]
[null,"Passiva:"]
[]
["7.20","Der in der Bilanz angegebene Gewinn bzw. Verlust entspricht dem Jahresüberschuss bzw. Jahresfehlbetrag aus der Gewinn- und Verlustrechnung (GuV). Für GmbH mit negativem Eigenkapital gilt: Das Eigenkapital am 01.01. entspricht dem nominalen Stammkapital plus dem Verlustvortrag vom 31.12. des Vorjahres."]
[]
["7.22","Gesellschafterdarlehen werden im Erhebungsbogen zum Betriebsvergleich als „Fremdkapital“ erfasst – unabhängig davon, ob ein Rangrücktritt erklärt ist."]
[]
[null,"Summe Passiva"]
[null,"Für Kontrollzwecke bitte den Wert aus der Bilanz angeben."]